[Event "Titled Tuesday Blitz May 9 Early 2023"]
[White "Sokolovsky, Yahli"]
[Black "Sjugirov, Sanan"]
[WhiteFideId "2820242"]
[BlackFideId "4189302"]
[WhiteElo "2389"]
[BlackElo "2569"]
[Result "1-0"]
[Round "07"]
[TimeControl "180+2"]
[Date "2023.05.09"]
[WhiteClock "0:00:02"]
[BlackClock "0:00:00"]

1. b3 {[%clk 0:03:00]}  d5 {[%clk 0:02:59]} 2. Bb2 {[%clk 0:03:01]}  Bf5 {[%clk 0:03:00]} 3. e3 {[%clk 0:02:59]}  e6 {[%clk 0:03:00]} 4. d4 {[%clk 0:03:00]}  Nf6 {[%clk 0:03:00]} 5. Bd3 {[%clk 0:03:00]}  Nbd7 {[%clk 0:02:57]} 6. Nf3 {[%clk 0:03:01]}  c6 {[%clk 0:02:56]} 7. Ne5 {[%clk 0:03:01]}  Bxd3 {[%clk 0:02:51]} 8. Qxd3 {[%clk 0:02:54]}  Nxe5 {[%clk 0:02:50]} 9. dxe5 {[%clk 0:02:54]}  Nd7 {[%clk 0:02:51]} 10. Nd2 {[%clk 0:02:52]}  Be7 {[%clk 0:02:48]} 11. O-O {[%clk 0:02:52]}  O-O {[%clk 0:02:48]} 12. e4 {[%clk 0:02:44]}  Nc5 {[%clk 0:02:40]} 13. Qe2 {[%clk 0:02:44]}  Nxe4 {[%clk 0:02:40]} 14. Nxe4 {[%clk 0:02:45]}  dxe4 {[%clk 0:02:41]} 15. Rfd1 {[%clk 0:02:41]}  Qc7 {[%clk 0:02:39]} 16. Qxe4 {[%clk 0:02:41]}  Rfd8 {[%clk 0:02:38]} 17. Bd4 {[%clk 0:02:23]}  Qa5 {[%clk 0:02:35]} 18. c4 {[%clk 0:02:14]}  Rd7 {[%clk 0:02:31]} 19. Rd3 {[%clk 0:01:09]}  Rad8 {[%clk 0:02:29]} 20. Rad1 {[%clk 0:01:09]}  Qxa2 {[%clk 0:02:04]} 21. h4 {[%clk 0:00:58]}  c5 {[%clk 0:01:56]} 22. R1d2 {[%clk 0:00:39]}  Rxd4 {[%clk 0:01:28]} 23. Qxb7 {[%clk 0:00:21]}  Rxd3 {[%clk 0:01:27]} 24. Rxa2 {[%clk 0:00:18]}  R3d7 {[%clk 0:01:25]} 25. Qe4 {[%clk 0:00:16]}  Rd4 {[%clk 0:01:25]} 26. Qb7 {[%clk 0:00:16]}  R4d7 {[%clk 0:01:25]} 27. Qc6 {[%clk 0:00:15]}  h5 {[%clk 0:01:22]} 28. g3 {[%clk 0:00:16]}  g6 {[%clk 0:01:23]} 29. Kg2 {[%clk 0:00:15]}  Bf8 {[%clk 0:01:23]} 30. Ra6 {[%clk 0:00:14]}  Be7 {[%clk 0:01:21]} 31. Qa4 {[%clk 0:00:14]}  Bf8 {[%clk 0:01:05]} 32. Rxa7 {[%clk 0:00:12]}  Rd2 {[%clk 0:01:06]} 33. Qc6 {[%clk 0:00:10]}  Bg7 {[%clk 0:01:01]} 34. Qxc5 {[%clk 0:00:10]}  Re2 {[%clk 0:01:00]} 35. Qe7 {[%clk 0:00:08]}  Rf8 {[%clk 0:01:00]} 36. c5 {[%clk 0:00:08]}  Bxe5 {[%clk 0:01:00]} 37. Rd7 {[%clk 0:00:07]}  Rc2 {[%clk 0:00:58]} 38. b4 {[%clk 0:00:07]}  Bc3 {[%clk 0:00:58]} 39. Rd8 {[%clk 0:00:04]}  Bg7 {[%clk 0:00:55]} 40. b5 {[%clk 0:00:03]}  Rxc5 {[%clk 0:00:52]} 41. b6 {[%clk 0:00:02]}  Rb5 {[%clk 0:00:51]} 42. b7 {[%clk 0:00:01]}  Bh6 {[%clk 0:00:39]} 43. Rxf8+ {[%clk 0:00:02]}  Bxf8 {[%clk 0:00:00]} 44. Qc7 {[%clk 0:00:02]} 1-0


[Site "https://www.chess.com"]

[Event "Titled Tuesday Blitz May 9 Early 2023"]
[White "Costachi, Mihnea"]
[Black "Orozbaev, Eldiar"]
[WhiteFideId "1217518"]
[BlackFideId "13802240"]
[WhiteElo "2456"]
[BlackElo "2201"]
[Result "0-1"]
[Round "07"]
[TimeControl "180+2"]
[Date "2023.05.09"]
[WhiteClock "0:00:00"]
[BlackClock "0:00:02"]

1. Nc3 {[%clk 0:03:00]}  e5 {[%clk 0:02:58]} 2. e4 {[%clk 0:03:00]}  Nf6 {[%clk 0:02:57]} 3. Bc4 {[%clk 0:02:59]}  Bb4 {[%clk 0:02:54]} 4. Nge2 {[%clk 0:02:58]}  O-O {[%clk 0:02:54]} 5. O-O {[%clk 0:02:59]}  c6 {[%clk 0:02:55]} 6. d3 {[%clk 0:02:58]}  d5 {[%clk 0:02:55]} 7. Bb3 {[%clk 0:02:58]}  Be6 {[%clk 0:02:53]} 8. a3 {[%clk 0:02:58]}  Be7 {[%clk 0:02:49]} 9. Bg5 {[%clk 0:02:58]}  Nbd7 {[%clk 0:02:49]} 10. exd5 {[%clk 0:02:56]}  cxd5 {[%clk 0:02:49]} 11. d4 {[%clk 0:02:56]}  e4 {[%clk 0:02:49]} 12. Nf4 {[%clk 0:02:56]}  h6 {[%clk 0:02:44]} 13. Bxf6 {[%clk 0:02:54]}  Nxf6 {[%clk 0:02:45]} 14. f3 {[%clk 0:02:52]}  exf3 {[%clk 0:02:32]} 15. Qxf3 {[%clk 0:02:52]}  Qb6 {[%clk 0:02:30]} 16. Rad1 {[%clk 0:02:52]}  Rad8 {[%clk 0:02:29]} 17. Nfxd5 {[%clk 0:02:24]}  Nxd5 {[%clk 0:02:26]} 18. Bxd5 {[%clk 0:02:19]}  Bf6 {[%clk 0:02:26]} 19. Bxe6 {[%clk 0:02:17]}  Rxd4 {[%clk 0:02:24]} 20. Bxf7+ {[%clk 0:02:04]}  Rxf7 {[%clk 0:02:25]} 21. Kh1 {[%clk 0:02:05]}  Rxd1 {[%clk 0:02:15]} 22. Rxd1 {[%clk 0:02:05]}  Qxb2 {[%clk 0:02:13]} 23. Nd5 {[%clk 0:02:02]}  Qxc2 {[%clk 0:02:09]} 24. Re1 {[%clk 0:01:57]}  Bh4 {[%clk 0:01:58]} 25. Qe3 {[%clk 0:01:33]}  Bxe1 {[%clk 0:01:49]} 26. Qe8+ {[%clk 0:01:33]}  Kh7 {[%clk 0:01:38]} 27. Qxf7 {[%clk 0:01:32]}  Bc3 {[%clk 0:01:35]} 28. Qf1 {[%clk 0:01:13]}  Bd4 {[%clk 0:01:33]} 29. h3 {[%clk 0:01:09]}  a5 {[%clk 0:01:26]} 30. a4 {[%clk 0:01:08]}  Be5 {[%clk 0:01:24]} 31. Qe1 {[%clk 0:01:04]}  Bd4 {[%clk 0:01:19]} 32. Qf1 {[%clk 0:00:59]}  Qe4 {[%clk 0:01:01]} 33. Nf4 {[%clk 0:00:58]}  Be5 {[%clk 0:00:58]} 34. Nd3 {[%clk 0:00:57]}  Bd6 {[%clk 0:00:57]} 35. Qb1 {[%clk 0:00:52]}  Bg3 {[%clk 0:00:51]} 36. Qb5 {[%clk 0:00:51]}  Qc6 {[%clk 0:00:42]} 37. Qf5+ {[%clk 0:00:51]}  Qg6 {[%clk 0:00:42]} 38. Qd5 {[%clk 0:00:45]}  Qf6 {[%clk 0:00:40]} 39. Qe4+ {[%clk 0:00:46]}  Kg8 {[%clk 0:00:38]} 40. Qc4+ {[%clk 0:00:38]}  Kh8 {[%clk 0:00:34]} 41. Qc8+ {[%clk 0:00:37]}  Kh7 {[%clk 0:00:34]} 42. Qc1 {[%clk 0:00:38]}  Bd6 {[%clk 0:00:33]} 43. Qb1 {[%clk 0:00:37]}  Qg6 {[%clk 0:00:29]} 44. Qb5 {[%clk 0:00:35]}  b6 {[%clk 0:00:22]} 45. Qd5 {[%clk 0:00:36]}  Bg3 {[%clk 0:00:18]} 46. Qf3 {[%clk 0:00:35]}  h5 {[%clk 0:00:18]} 47. Qd5 {[%clk 0:00:32]}  h4 {[%clk 0:00:18]} 48. Kg1 {[%clk 0:00:33]}  Qf6 {[%clk 0:00:15]} 49. Qh5+ {[%clk 0:00:33]}  Kg8 {[%clk 0:00:15]} 50. Qe8+ {[%clk 0:00:33]}  Qf8 {[%clk 0:00:16]} 51. Qe6+ {[%clk 0:00:34]}  Kh8 {[%clk 0:00:16]} 52. Qxb6 {[%clk 0:00:30]}  Qf5 {[%clk 0:00:16]} 53. Qd8+ {[%clk 0:00:27]}  Kh7 {[%clk 0:00:16]} 54. Qd4 {[%clk 0:00:27]}  Qc8 {[%clk 0:00:15]} 55. Qe4+ {[%clk 0:00:26]}  Kh8 {[%clk 0:00:15]} 56. Qd5 {[%clk 0:00:26]}  Qe8 {[%clk 0:00:12]} 57. Qf3 {[%clk 0:00:17]}  Qxa4 {[%clk 0:00:07]} 58. Qf8+ {[%clk 0:00:17]}  Kh7 {[%clk 0:00:07]} 59. Qf5+ {[%clk 0:00:18]}  Kg8 {[%clk 0:00:08]} 60. Qe6+ {[%clk 0:00:14]}  Kf8 {[%clk 0:00:08]} 61. Qf5+ {[%clk 0:00:15]}  Ke8 {[%clk 0:00:08]} 62. Qe6+ {[%clk 0:00:15]}  Kd8 {[%clk 0:00:09]} 63. Qg8+ {[%clk 0:00:15]}  Qe8 {[%clk 0:00:06]} 64. Qd5+ {[%clk 0:00:14]}  Kc8 {[%clk 0:00:06]} 65. Qa8+ {[%clk 0:00:13]}  Kd7 {[%clk 0:00:06]} 66. Nc5+ {[%clk 0:00:13]}  Ke7 {[%clk 0:00:07]} 67. Qxa5 {[%clk 0:00:08]}  Kf8 {[%clk 0:00:05]} 68. Qd2 {[%clk 0:00:06]}  Kg8 {[%clk 0:00:03]} 69. Qd5+ {[%clk 0:00:07]}  Kh8 {[%clk 0:00:04]} 70. Ne6 {[%clk 0:00:08]}  Qb8 {[%clk 0:00:03]} 71. Qh5+ {[%clk 0:00:08]}  Kg8 {[%clk 0:00:03]} 72. Qe2 {[%clk 0:00:00]}  Qb6+ {[%clk 0:00:02]} 0-1


[Site "https://www.chess.com"]

[Event "Titled Tuesday Blitz May 9 Early 2023"]
[White "Pranesh M"]
[Black "Fernandez Guillen, Ernesto J."]
[WhiteFideId "35028600"]
[BlackFideId "3512428"]
[WhiteElo "2437"]
[BlackElo "2429"]
[Result "1-0"]
[Round "07"]
[TimeControl "180+2"]
[Date "2023.05.09"]
[WhiteClock "0:00:04"]
[BlackClock "0:00:09"]

1. e4 {[%clk 0:03:00]}  e5 {[%clk 0:02:45]} 2. Nf3 {[%clk 0:03:00]}  Nc6 {[%clk 0:02:45]} 3. Bc4 {[%clk 0:03:01]}  g6 {[%clk 0:02:45]} 4. d4 {[%clk 0:02:58]}  exd4 {[%clk 0:02:46]} 5. Nxd4 {[%clk 0:02:50]}  Bg7 {[%clk 0:02:46]} 6. Be3 {[%clk 0:02:50]}  Nge7 {[%clk 0:02:42]} 7. O-O {[%clk 0:02:49]}  O-O {[%clk 0:02:41]} 8. Nc3 {[%clk 0:02:49]}  Ne5 {[%clk 0:02:40]} 9. Be2 {[%clk 0:02:46]}  d5 {[%clk 0:02:40]} 10. Bg5 {[%clk 0:02:24]}  dxe4 {[%clk 0:02:30]} 11. Nxe4 {[%clk 0:02:25]}  h6 {[%clk 0:02:17]} 12. Bf6 {[%clk 0:02:24]}  Bxf6 {[%clk 0:02:16]} 13. Nxf6+ {[%clk 0:02:25]}  Kg7 {[%clk 0:02:16]} 14. Ne4 {[%clk 0:02:25]}  Nf5 {[%clk 0:02:12]} 15. Nxf5+ {[%clk 0:02:21]}  Bxf5 {[%clk 0:02:13]} 16. Ng3 {[%clk 0:02:22]}  Qxd1 {[%clk 0:02:09]} 17. Nxf5+ {[%clk 0:02:22]}  gxf5 {[%clk 0:02:09]} 18. Rfxd1 {[%clk 0:02:23]}  Rad8 {[%clk 0:02:10]} 19. f4 {[%clk 0:02:21]}  Ng6 {[%clk 0:02:10]} 20. g3 {[%clk 0:02:21]}  c6 {[%clk 0:02:10]} 21. Kf2 {[%clk 0:02:20]}  Kf6 {[%clk 0:02:11]} 22. a4 {[%clk 0:02:20]}  Ne7 {[%clk 0:02:04]} 23. a5 {[%clk 0:02:19]}  Nd5 {[%clk 0:01:58]} 24. Ra4 {[%clk 0:02:14]}  Nc7 {[%clk 0:01:56]} 25. Rxd8 {[%clk 0:02:04]}  Rxd8 {[%clk 0:01:57]} 26. Rb4 {[%clk 0:02:04]}  Rb8 {[%clk 0:01:34]} 27. Bf3 {[%clk 0:01:33]}  Na6 {[%clk 0:01:33]} 28. Rd4 {[%clk 0:01:31]}  Ke7 {[%clk 0:01:26]} 29. Be2 {[%clk 0:01:31]}  Nc5 {[%clk 0:01:24]} 30. Rc4 {[%clk 0:01:25]}  Ne4+ {[%clk 0:01:23]} 31. Ke1 {[%clk 0:01:24]}  Nd6 {[%clk 0:01:20]} 32. Rc5 {[%clk 0:01:20]}  f6 {[%clk 0:01:18]} 33. b3 {[%clk 0:01:17]}  Kd7 {[%clk 0:01:14]} 34. Bf3 {[%clk 0:00:49]}  Rc8 {[%clk 0:01:12]} 35. Rc3 {[%clk 0:00:46]}  b6 {[%clk 0:01:12]} 36. a6 {[%clk 0:00:45]}  c5 {[%clk 0:01:11]} 37. Re3 {[%clk 0:00:34]}  c4 {[%clk 0:00:58]} 38. Bd5 {[%clk 0:00:32]}  Rc5 {[%clk 0:00:55]} 39. Be6+ {[%clk 0:00:27]}  Kc6 {[%clk 0:00:26]} 40. b4 {[%clk 0:00:24]}  Rb5 {[%clk 0:00:22]} 41. c3 {[%clk 0:00:24]}  Kc7 {[%clk 0:00:18]} 42. Kd1 {[%clk 0:00:20]}  Kc6 {[%clk 0:00:18]} 43. Kc2 {[%clk 0:00:21]}  Kc7 {[%clk 0:00:18]} 44. Kb2 {[%clk 0:00:20]}  Kc6 {[%clk 0:00:17]} 45. Ka3 {[%clk 0:00:18]}  Kc7 {[%clk 0:00:16]} 46. Ka4 {[%clk 0:00:18]}  Kc6 {[%clk 0:00:17]} 47. h3 {[%clk 0:00:19]}  h5 {[%clk 0:00:15]} 48. h4 {[%clk 0:00:17]}  Rd5 {[%clk 0:00:14]} 49. Bxd5+ {[%clk 0:00:16]}  Kxd5 {[%clk 0:00:15]} 50. Re7 {[%clk 0:00:16]}  Ne4 {[%clk 0:00:16]} 51. b5 {[%clk 0:00:10]}  Nxc3+ {[%clk 0:00:15]} 52. Kb4 {[%clk 0:00:10]}  Na2+ {[%clk 0:00:15]} 53. Ka3 {[%clk 0:00:11]}  Nc3 {[%clk 0:00:16]} 54. Kb4 {[%clk 0:00:10]}  Na2+ {[%clk 0:00:16]} 55. Ka3 {[%clk 0:00:10]}  Nc3 {[%clk 0:00:17]} 56. Rh7 {[%clk 0:00:10]}  Kc5 {[%clk 0:00:15]} 57. Rxh5 {[%clk 0:00:08]}  Nxb5+ {[%clk 0:00:16]} 58. Kb2 {[%clk 0:00:09]}  Kb4 {[%clk 0:00:16]} 59. Rh7 {[%clk 0:00:04]}  c3+ {[%clk 0:00:16]} 60. Kc1 {[%clk 0:00:05]}  Kc4 {[%clk 0:00:14]} 61. h5 {[%clk 0:00:04]}  Nd4 {[%clk 0:00:13]} 62. Rc7+ {[%clk 0:00:05]}  Kb3 {[%clk 0:00:12]} 63. h6 {[%clk 0:00:04]}  c2 {[%clk 0:00:12]} 64. h7 {[%clk 0:00:03]}  Ne2+ {[%clk 0:00:10]} 65. Kd2 {[%clk 0:00:04]}  Nxg3 {[%clk 0:00:08]} 66. Rc3+ {[%clk 0:00:04]}  Kb2 {[%clk 0:00:08]} 67. Rxc2+ {[%clk 0:00:04]}  Kb1 {[%clk 0:00:09]} 68. h8=Q {[%clk 0:00:04]}  Ne4+ {[%clk 0:00:09]} 69. Kd3 {[%clk 0:00:04]} 1-0


[Site "https://www.chess.com"]

[Event "Titled Tuesday Blitz May 9 Early 2023"]
[White "Yuan, Qingyu"]
[Black "Bok, Benjamin"]
[WhiteFideId "8609772"]
[BlackFideId "1017063"]
[WhiteElo "2359"]
[BlackElo "2657"]
[Result "1-0"]
[Round "07"]
[TimeControl "180+2"]
[Date "2023.05.09"]
[WhiteClock "0:00:18"]
[BlackClock "0:00:00"]

1. Nf3 {[%clk 0:03:00]}  d5 {[%clk 0:02:58]} 2. d4 {[%clk 0:03:00]}  Nf6 {[%clk 0:02:58]} 3. e3 {[%clk 0:02:57]}  Bf5 {[%clk 0:02:53]} 4. Bd3 {[%clk 0:02:57]}  Bg6 {[%clk 0:02:52]} 5. Ne5 {[%clk 0:02:56]}  e6 {[%clk 0:02:50]} 6. O-O {[%clk 0:02:50]}  Bd6 {[%clk 0:02:48]} 7. f4 {[%clk 0:02:47]}  O-O {[%clk 0:02:37]} 8. Nxg6 {[%clk 0:02:34]}  hxg6 {[%clk 0:02:37]} 9. Nd2 {[%clk 0:02:33]}  c5 {[%clk 0:02:36]} 10. c3 {[%clk 0:02:31]}  Nc6 {[%clk 0:02:35]} 11. Nf3 {[%clk 0:02:29]}  Qe7 {[%clk 0:02:27]} 12. Ng5 {[%clk 0:02:17]}  Nh7 {[%clk 0:02:12]} 13. Nf3 {[%clk 0:02:06]}  f5 {[%clk 0:02:10]} 14. Bd2 {[%clk 0:02:03]}  g5 {[%clk 0:02:03]} 15. fxg5 {[%clk 0:01:42]}  Nxg5 {[%clk 0:02:00]} 16. Nxg5 {[%clk 0:01:39]}  Qxg5 {[%clk 0:02:00]} 17. e4 {[%clk 0:01:34]}  Qh4 {[%clk 0:01:51]} 18. e5 {[%clk 0:01:31]}  Be7 {[%clk 0:01:51]} 19. Rf4 {[%clk 0:01:26]}  Qh7 {[%clk 0:01:46]} 20. Qf3 {[%clk 0:00:56]}  cxd4 {[%clk 0:01:45]} 21. cxd4 {[%clk 0:00:55]}  g5 {[%clk 0:00:37]} 22. Rg4 {[%clk 0:00:45]}  Qh6 {[%clk 0:00:35]} 23. Rg3 {[%clk 0:00:25]}  Nxd4 {[%clk 0:00:35]} 24. Qf4 {[%clk 0:00:08]}  Nc6 {[%clk 0:00:28]} 25. h4 {[%clk 0:00:08]}  Qg7 {[%clk 0:00:24]} 26. hxg5 {[%clk 0:00:08]}  Nxe5 {[%clk 0:00:14]} 27. Bc3 {[%clk 0:00:05]}  Nxd3 {[%clk 0:00:09]} 28. Rxd3 {[%clk 0:00:06]}  Qg6 {[%clk 0:00:08]} 29. Rh3 {[%clk 0:00:04]}  Kf7 {[%clk 0:00:05]} 30. Re1 {[%clk 0:00:03]}  Rac8 {[%clk 0:00:02]} 31. Qe5 {[%clk 0:00:02]}  Rg8 {[%clk 0:00:01]} 32. Rh6 {[%clk 0:00:02]}  Qxg5 {[%clk 0:00:01]} 33. Qxe6+ {[%clk 0:00:03]}  Kf8 {[%clk 0:00:01]} 34. Rh2 {[%clk 0:00:02]}  Bc5+ {[%clk 0:00:01]} 35. Kh1 {[%clk 0:00:02]}  Be7 {[%clk 0:00:01]} 36. Qxc8+ {[%clk 0:00:02]}  Kf7 {[%clk 0:00:02]} 37. Qe6+ {[%clk 0:00:03]}  Kf8 {[%clk 0:00:02]} 38. Qxe7+ {[%clk 0:00:03]}  Qxe7 {[%clk 0:00:03]} 39. Rxe7 {[%clk 0:00:04]}  Kxe7 {[%clk 0:00:04]} 40. Rh7+ {[%clk 0:00:05]}  Ke6 {[%clk 0:00:04]} 41. Rxb7 {[%clk 0:00:05]}  a6 {[%clk 0:00:04]} 42. Rb6+ {[%clk 0:00:05]}  Kd7 {[%clk 0:00:05]} 43. Rxa6 {[%clk 0:00:06]}  Rg4 {[%clk 0:00:06]} 44. Kg1 {[%clk 0:00:06]}  d4 {[%clk 0:00:06]} 45. Bd2 {[%clk 0:00:06]}  d3 {[%clk 0:00:06]} 46. Ra3 {[%clk 0:00:06]}  Rd4 {[%clk 0:00:07]} 47. Kf2 {[%clk 0:00:07]}  f4 {[%clk 0:00:07]} 48. Kf3 {[%clk 0:00:07]}  Kc6 {[%clk 0:00:07]} 49. Rc3+ {[%clk 0:00:07]}  Kb5 {[%clk 0:00:08]} 50. b3 {[%clk 0:00:07]}  Ka6 {[%clk 0:00:07]} 51. Rc4 {[%clk 0:00:06]}  Rd5 {[%clk 0:00:07]} 52. a4 {[%clk 0:00:07]}  Rd8 {[%clk 0:00:08]} 53. Rc3 {[%clk 0:00:06]}  Rd4 {[%clk 0:00:08]} 54. Kf2 {[%clk 0:00:05]}  Kb7 {[%clk 0:00:07]} 55. Kf3 {[%clk 0:00:06]}  Ka6 {[%clk 0:00:07]} 56. g3 {[%clk 0:00:06]}  fxg3 {[%clk 0:00:06]} 57. Kxg3 {[%clk 0:00:07]}  Kb7 {[%clk 0:00:05]} 58. Kf3 {[%clk 0:00:08]}  Rd8 {[%clk 0:00:06]} 59. Ke3 {[%clk 0:00:08]}  Re8+ {[%clk 0:00:07]} 60. Kd4 {[%clk 0:00:08]}  Rd8+ {[%clk 0:00:08]} 61. Ke3 {[%clk 0:00:08]}  Rg8 {[%clk 0:00:09]} 62. Kxd3 {[%clk 0:00:09]}  Rd8+ {[%clk 0:00:09]} 63. Kc2 {[%clk 0:00:10]}  Rg8 {[%clk 0:00:09]} 64. Rd3 {[%clk 0:00:11]}  Rc8+ {[%clk 0:00:09]} 65. Kb2 {[%clk 0:00:11]}  Rg8 {[%clk 0:00:10]} 66. Bc3 {[%clk 0:00:11]}  Rg2+ {[%clk 0:00:10]} 67. Rd2 {[%clk 0:00:12]}  Rg4 {[%clk 0:00:11]} 68. Rc2 {[%clk 0:00:13]}  Rh4 {[%clk 0:00:10]} 69. b4 {[%clk 0:00:14]}  Rg4 {[%clk 0:00:10]} 70. Kb3 {[%clk 0:00:15]}  Rg3 {[%clk 0:00:11]} 71. b5 {[%clk 0:00:15]}  Rh3 {[%clk 0:00:11]} 72. Rd2 {[%clk 0:00:16]}  Rg3 {[%clk 0:00:11]} 73. Rd4 {[%clk 0:00:16]}  Rg1 {[%clk 0:00:11]} 74. Rb4 {[%clk 0:00:17]}  Rb1+ {[%clk 0:00:11]} 75. Kc4 {[%clk 0:00:18]}  Rh1 {[%clk 0:00:12]} 76. Kb3 {[%clk 0:00:19]}  Rb1+ {[%clk 0:00:12]} 77. Bb2 {[%clk 0:00:19]}  Rh1 {[%clk 0:00:13]} 78. a5 {[%clk 0:00:19]}  Rh3+ {[%clk 0:00:13]} 79. Ka4 {[%clk 0:00:20]}  Rh2 {[%clk 0:00:12]} 80. Ba3 {[%clk 0:00:20]}  Rh3 {[%clk 0:00:09]} 81. Rc4 {[%clk 0:00:20]}  Rh5 {[%clk 0:00:06]} 82. a6+ {[%clk 0:00:20]}  Ka8 {[%clk 0:00:04]} 83. Rc7 {[%clk 0:00:19]}  Kb8 {[%clk 0:00:03]} 84. Rd7 {[%clk 0:00:19]}  Rh3 {[%clk 0:00:02]} 85. Bb4 {[%clk 0:00:19]}  Rh1 {[%clk 0:00:02]} 86. Ka5 {[%clk 0:00:19]}  Ka8 {[%clk 0:00:01]} 87. Kb6 {[%clk 0:00:17]}  Rh6+ {[%clk 0:00:00]} 88. Ka5 {[%clk 0:00:18]} 1-0


[Site "https://www.chess.com"]

[Event "Titled Tuesday Blitz May 9 Early 2023"]
[White "Hasangatin, Ramil"]
[Black "Nguyen, Ngoc Truong Son"]
[WhiteFideId "4122160"]
[BlackFideId "12401110"]
[WhiteElo "2279"]
[BlackElo "2556"]
[Result "0-1"]
[Round "07"]
[TimeControl "180+2"]
[Date "2023.05.09"]
[WhiteClock "0:00:06"]
[BlackClock "0:00:30"]

1. e4 {[%clk 0:03:00]}  c5 {[%clk 0:02:59]} 2. Nf3 {[%clk 0:02:59]}  e6 {[%clk 0:03:00]} 3. g3 {[%clk 0:02:59]}  g6 {[%clk 0:02:58]} 4. d4 {[%clk 0:02:58]}  Bg7 {[%clk 0:02:56]} 5. dxc5 {[%clk 0:02:56]}  b6 {[%clk 0:02:49]} 6. cxb6 {[%clk 0:02:49]}  Qxb6 {[%clk 0:02:50]} 7. c3 {[%clk 0:02:44]}  Nf6 {[%clk 0:02:47]} 8. Bd3 {[%clk 0:02:32]}  Bb7 {[%clk 0:02:42]} 9. Qe2 {[%clk 0:02:31]}  h5 {[%clk 0:02:31]} 10. O-O {[%clk 0:02:25]}  h4 {[%clk 0:02:30]} 11. Nxh4 {[%clk 0:02:23]}  Nc6 {[%clk 0:02:30]} 12. Nf3 {[%clk 0:02:06]}  Ng4 {[%clk 0:02:14]} 13. Na3 {[%clk 0:02:02]}  Qc5 {[%clk 0:01:32]} 14. Bf4 {[%clk 0:01:42]}  Qh5 {[%clk 0:01:08]} 15. h4 {[%clk 0:01:42]}  O-O {[%clk 0:01:00]} 16. Nc4 {[%clk 0:01:39]}  d5 {[%clk 0:00:58]} 17. Nd6 {[%clk 0:01:37]}  Rab8 {[%clk 0:00:53]} 18. exd5 {[%clk 0:01:26]}  exd5 {[%clk 0:00:49]} 19. Nh2 {[%clk 0:01:19]}  Nce5 {[%clk 0:00:44]} 20. Bxe5 {[%clk 0:01:10]}  Nxe5 {[%clk 0:00:45]} 21. Qxh5 {[%clk 0:01:09]}  gxh5 {[%clk 0:00:46]} 22. Be2 {[%clk 0:00:43]}  Ba8 {[%clk 0:00:43]} 23. Rab1 {[%clk 0:00:36]}  f5 {[%clk 0:00:43]} 24. Nb5 {[%clk 0:00:20]}  f4 {[%clk 0:00:42]} 25. Nd4 {[%clk 0:00:20]}  Nc4 {[%clk 0:00:38]} 26. Bxc4 {[%clk 0:00:09]}  dxc4 {[%clk 0:00:39]} 27. Nhf3 {[%clk 0:00:09]}  Be4 {[%clk 0:00:36]} 28. Rbd1 {[%clk 0:00:06]}  Rxb2 {[%clk 0:00:33]} 29. Ng5 {[%clk 0:00:06]}  Bd3 {[%clk 0:00:33]} 30. Rfe1 {[%clk 0:00:06]}  Bxd4 {[%clk 0:00:32]} 31. cxd4 {[%clk 0:00:05]}  fxg3 {[%clk 0:00:31]} 32. fxg3 {[%clk 0:00:06]}  Rff2 {[%clk 0:00:29]} 33. d5 {[%clk 0:00:05]}  Rg2+ {[%clk 0:00:28]} 34. Kh1 {[%clk 0:00:05]}  Rh2+ {[%clk 0:00:29]} 35. Kg1 {[%clk 0:00:06]}  Rbg2# {[%clk 0:00:30]} 0-1


[Site "https://www.chess.com"]

[Event "Titled Tuesday Blitz May 9 Early 2023"]
[White "Kucuksari, Kaan"]
[Black "Salinas Herrera, Pablo"]
[WhiteFideId "6380166"]
[BlackFideId "3407128"]
[WhiteElo "2364"]
[BlackElo "2546"]
[Result "1/2-1/2"]
[Round "07"]
[TimeControl "180+2"]
[Date "2023.05.09"]
[WhiteClock "0:00:05"]
[BlackClock "0:00:07"]

1. d4 {[%clk 0:03:00]}  d5 {[%clk 0:02:58]} 2. Nf3 {[%clk 0:03:00]}  Nf6 {[%clk 0:02:58]} 3. Bf4 {[%clk 0:03:00]}  e6 {[%clk 0:02:58]} 4. e3 {[%clk 0:03:01]}  Bd6 {[%clk 0:02:59]} 5. Bd3 {[%clk 0:03:00]}  O-O {[%clk 0:02:59]} 6. O-O {[%clk 0:03:00]}  c5 {[%clk 0:03:00]} 7. c3 {[%clk 0:02:59]}  Bxf4 {[%clk 0:03:01]} 8. exf4 {[%clk 0:03:00]}  Qc7 {[%clk 0:03:01]} 9. g3 {[%clk 0:02:59]}  b6 {[%clk 0:03:01]} 10. Re1 {[%clk 0:02:58]}  a5 {[%clk 0:02:57]} 11. a4 {[%clk 0:02:54]}  Ba6 {[%clk 0:02:42]} 12. Na3 {[%clk 0:02:51]}  Bxd3 {[%clk 0:02:41]} 13. Qxd3 {[%clk 0:02:52]}  Nc6 {[%clk 0:02:42]} 14. Nb5 {[%clk 0:02:51]}  Qb7 {[%clk 0:02:39]} 15. Ne5 {[%clk 0:02:48]}  Ne7 {[%clk 0:02:38]} 16. h4 {[%clk 0:02:19]}  Ne4 {[%clk 0:02:30]} 17. Kg2 {[%clk 0:02:09]}  Nf5 {[%clk 0:02:25]} 18. Rh1 {[%clk 0:02:01]}  Rac8 {[%clk 0:02:15]} 19. g4 {[%clk 0:01:42]}  Nfd6 {[%clk 0:02:15]} 20. Nxd6 {[%clk 0:01:34]}  Nxd6 {[%clk 0:02:15]} 21. h5 {[%clk 0:01:30]}  cxd4 {[%clk 0:02:15]} 22. cxd4 {[%clk 0:01:26]}  Ne4 {[%clk 0:02:08]} 23. h6 {[%clk 0:01:23]}  f6 {[%clk 0:02:06]} 24. Nf3 {[%clk 0:01:19]}  g5 {[%clk 0:02:01]} 25. fxg5 {[%clk 0:00:52]}  fxg5 {[%clk 0:02:02]} 26. Rac1 {[%clk 0:00:50]}  Rxc1 {[%clk 0:01:54]} 27. Rxc1 {[%clk 0:00:51]}  Qf7 {[%clk 0:01:55]} 28. Qe3 {[%clk 0:00:50]}  Qf6 {[%clk 0:01:51]} 29. Rc2 {[%clk 0:00:40]}  Qxh6 {[%clk 0:01:50]} 30. Ne5 {[%clk 0:00:41]}  Qh4 {[%clk 0:01:43]} 31. Re2 {[%clk 0:00:11]}  Rf4 {[%clk 0:01:41]} 32. Rc2 {[%clk 0:00:10]}  Rf8 {[%clk 0:01:08]} 33. Re2 {[%clk 0:00:09]}  Kg7 {[%clk 0:00:55]} 34. Rc2 {[%clk 0:00:08]}  h5 {[%clk 0:00:37]} 35. gxh5 {[%clk 0:00:09]}  Qxh5 {[%clk 0:00:32]} 36. f3 {[%clk 0:00:09]}  Nd6 {[%clk 0:00:30]} 37. Rc7+ {[%clk 0:00:09]}  Kg8 {[%clk 0:00:30]} 38. Ng4 {[%clk 0:00:09]}  Qg6 {[%clk 0:00:27]} 39. Rc6 {[%clk 0:00:06]}  Nf5 {[%clk 0:00:22]} 40. Qxe6+ {[%clk 0:00:04]}  Qxe6 {[%clk 0:00:23]} 41. Rxe6 {[%clk 0:00:05]}  Nxd4 {[%clk 0:00:24]} 42. Rg6+ {[%clk 0:00:04]}  Kh7 {[%clk 0:00:21]} 43. Rxg5 {[%clk 0:00:03]}  Ne6 {[%clk 0:00:16]} 44. Re5 {[%clk 0:00:03]}  Nf4+ {[%clk 0:00:16]} 45. Kg3 {[%clk 0:00:03]}  Kg6 {[%clk 0:00:12]} 46. Re7 {[%clk 0:00:03]}  Nh5+ {[%clk 0:00:10]} 47. Kg2 {[%clk 0:00:03]}  Rc8 {[%clk 0:00:09]} 48. Rb7 {[%clk 0:00:03]}  Rc2+ {[%clk 0:00:08]} 49. Kh3 {[%clk 0:00:02]}  Rxb2 {[%clk 0:00:08]} 50. Rd7 {[%clk 0:00:02]}  Nf4+ {[%clk 0:00:07]} 51. Kg3 {[%clk 0:00:03]}  Ne2+ {[%clk 0:00:07]} 52. Kh3 {[%clk 0:00:03]}  Nc3 {[%clk 0:00:08]} 53. Rd6+ {[%clk 0:00:03]}  Kf5 {[%clk 0:00:08]} 54. Kg3 {[%clk 0:00:03]}  Rb4 {[%clk 0:00:08]} 55. Rf6+ {[%clk 0:00:03]}  Kg5 {[%clk 0:00:08]} 56. f4+ {[%clk 0:00:03]}  Rxf4 {[%clk 0:00:08]} 57. Rxf4 {[%clk 0:00:04]}  Ne2+ {[%clk 0:00:08]} 58. Kf3 {[%clk 0:00:04]}  Nxf4 {[%clk 0:00:09]} 59. Ne5 {[%clk 0:00:04]}  Ne6 {[%clk 0:00:08]} 60. Nd7 {[%clk 0:00:03]}  Nc5 {[%clk 0:00:08]} 61. Nxb6 {[%clk 0:00:03]}  d4 {[%clk 0:00:09]} 62. Nc4 {[%clk 0:00:02]}  Nxa4 {[%clk 0:00:08]} 63. Nxa5 {[%clk 0:00:03]}  Kf5 {[%clk 0:00:09]} 64. Nc6 {[%clk 0:00:03]}  d3 {[%clk 0:00:08]} 65. Ke3 {[%clk 0:00:04]}  Nc5 {[%clk 0:00:08]} 66. Nb4 {[%clk 0:00:05]}  Ke5 {[%clk 0:00:07]} 67. Nxd3+ {[%clk 0:00:05]} 1/2-1/2


[Site "https://www.chess.com"]